[Event "Late-Titled-Tuesday-Blitz-October-24-2023"]
[Site "Chess.com"]
[Date "2023.10.24"]
[Round "10"]
[White "BardArtem"]
[Black "Payyappat"]
[Result "1-0"]
[WhiteElo "2717"]
[BlackElo "2541"]
[TimeControl "180+1"]
[EndTime "15:57:13 PDT"]
[Termination "BardArtem won on time"]

1. e4 {[%clk 0:02:58.6]} 1... c6 {[%clk 0:02:59.7]} 2. d4 {[%clk 0:02:57.8]}
2... d5 {[%clk 0:03:00.6]} 3. exd5 {[%clk 0:02:58.7]} 3... cxd5 {[%clk
0:03:01.5]} 4. Bd3 {[%clk 0:02:59.1]} 4... Nc6 {[%clk 0:03:01.9]} 5. c3 {[%clk
0:02:59.6]} 5... Qc7 {[%clk 0:03:02.3]} 6. h3 {[%clk 0:02:59.5]} 6... g6 {[%clk
0:03:00.2]} 7. Nf3 {[%clk 0:02:59.8]} 7... Bf5 {[%clk 0:02:59.2]} 8. Be2 {[%clk
0:02:59.7]} 8... Nf6 {[%clk 0:02:58.2]} 9. O-O {[%clk 0:02:59.7]} 9... Bg7
{[%clk 0:02:58.1]} 10. Na3 {[%clk 0:02:59.4]} 10... O-O-O {[%clk 0:02:52.5]} 11.
Re1 {[%clk 0:02:46.1]} 11... Ne4 {[%clk 0:02:47.4]} 12. Nc2 {[%clk 0:02:43.1]}
12... h5 {[%clk 0:02:39.1]} 13. a4 {[%clk 0:02:32.5]} 13... Bf6 {[%clk
0:02:31.9]} 14. Bd3 {[%clk 0:02:18.9]} 14... g5 {[%clk 0:02:28.3]} 15. Nd2
{[%clk 0:02:13.2]} 15... e5 {[%clk 0:02:16.6]} 16. Qf3 {[%clk 0:02:03.4]} 16...
Ne7 {[%clk 0:01:35.1]} 17. Nxe4 {[%clk 0:01:56.5]} 17... dxe4 {[%clk 0:01:32.1]}
18. Bxe4 {[%clk 0:01:57.4]} 18... Bxe4 {[%clk 0:01:31.6]} 19. Rxe4 {[%clk
0:01:49]} 19... Nd5 {[%clk 0:01:27]} 20. Qf5+ {[%clk 0:01:40.5]} 20... Kb8
{[%clk 0:01:19]} 21. c4 {[%clk 0:01:40.1]} 21... Qxc4 {[%clk 0:01:11.5]} 22. Ne3
{[%clk 0:01:21.6]} 22... Nxe3 {[%clk 0:01:09]} 23. Bxe3 {[%clk 0:01:22.5]} 23...
Qd5 {[%clk 0:00:45.5]} 24. dxe5 {[%clk 0:01:16.7]} 24... Rhe8 {[%clk 0:00:41.2]}
25. Re1 {[%clk 0:00:41.2]} 25... Rxe5 {[%clk 0:00:20.3]} 26. Rxe5 {[%clk
0:00:38.1]} 26... Bxe5 {[%clk 0:00:19.7]} 27. Qxe5+ {[%clk 0:00:33.1]} 27...
Qxe5 {[%clk 0:00:19.1]} 28. Bxa7+ {[%clk 0:00:33.4]} 28... Kxa7 {[%clk 0:00:20]}
29. Rxe5 {[%clk 0:00:33.9]} 29... f6 {[%clk 0:00:19.7]} 30. Rf5 {[%clk
0:00:29.6]} 30... Rd6 {[%clk 0:00:18.4]} 31. h4 {[%clk 0:00:30.1]} 31... gxh4
{[%clk 0:00:15.2]} 32. Rxh5 {[%clk 0:00:31]} 32... Rd4 {[%clk 0:00:15.4]} 33. a5
{[%clk 0:00:11.6]} 33... Ka6 {[%clk 0:00:13.1]} 34. Rf5 {[%clk 0:00:10.4]} 34...
Rb4 {[%clk 0:00:07.4]} 35. Rxf6+ {[%clk 0:00:06.3]} 35... Kxa5 {[%clk
0:00:08.3]} 36. Rh6 {[%clk 0:00:05.9]} 36... Ka4 {[%clk 0:00:08.1]} 37. Kh2
{[%clk 0:00:03.2]} 37... Kb3 {[%clk 0:00:08.5]} 38. Rh7 {[%clk 0:00:01.8]} 38...
Kxb2 {[%clk 0:00:08.6]} 39. Kh3 {[%clk 0:00:02.3]} 39... b5 {[%clk 0:00:08.3]}
40. Rxh4 {[%clk 0:00:02.9]} 40... Rxh4+ {[%clk 0:00:08.3]} 41. Kxh4 {[%clk
0:00:03.8]} 41... b4 {[%clk 0:00:09]} 42. f4 {[%clk 0:00:04.4]} 42... b3 {[%clk
0:00:08.5]} 43. f5 {[%clk 0:00:05]} 43... Kc3 {[%clk 0:00:06.7]} 44. f6 {[%clk
0:00:05.7]} 44... b2 {[%clk 0:00:07.6]} 45. f7 {[%clk 0:00:06.6]} 45... b1=Q
{[%clk 0:00:08.1]} 46. f8=Q {[%clk 0:00:07.5]} 46... Qe4+ {[%clk 0:00:05.7]} 47.
Kg3 {[%clk 0:00:03.7]} 47... Qg6+ {[%clk 0:00:06.3]} 48. Kf2 {[%clk 0:00:03.4]}
48... Qb6+ {[%clk 0:00:06.8]} 49. Kg3 {[%clk 0:00:02.2]} 49... Qc7+ {[%clk
0:00:05.3]} 50. Qf4 {[%clk 0:00:01.8]} 50... Qg7+ {[%clk 0:00:05.1]} 51. Qg4
{[%clk 0:00:02.5]} 51... Qe5+ {[%clk 0:00:05.2]} 52. Qf4 {[%clk 0:00:02.7]}
52... Qe1+ {[%clk 0:00:05.4]} 53. Qf2 {[%clk 0:00:02.8]} 53... Qe5+ {[%clk
0:00:05.1]} 54. Kh3 {[%clk 0:00:03.4]} 54... Qh5+ {[%clk 0:00:05.1]} 55. Qh4
{[%clk 0:00:03.9]} 55... Qf5+ {[%clk 0:00:05.3]} 56. Qg4 {[%clk 0:00:04.6]}
56... Qh7+ {[%clk 0:00:05.7]} 57. Kg3 {[%clk 0:00:04.4]} 57... Qc7+ {[%clk
0:00:05.1]} 58. Qf4 {[%clk 0:00:05.1]} 58... Qg7+ {[%clk 0:00:05.6]} 59. Kf3
{[%clk 0:00:05.4]} 59... Qb7+ {[%clk 0:00:03.9]} 60. Qe4 {[%clk 0:00:05.3]}
60... Qf7+ {[%clk 0:00:04.5]} 61. Qf4 {[%clk 0:00:05.2]} 61... Qb7+ {[%clk
0:00:04.5]} 62. Kf2 {[%clk 0:00:05.8]} 62... Qb2+ {[%clk 0:00:03.3]} 63. Kg1
{[%clk 0:00:05.8]} 63... Qb1+ {[%clk 0:00:02.1]} 64. Qf1 {[%clk 0:00:06.5]}
64... Qg6 {[%clk 0:00:01.9]} 65. Qf3+ {[%clk 0:00:05.5]} 65... Kd4 {[%clk
0:00:02.1]} 66. Kf2 {[%clk 0:00:05.3]} 66... Qc2+ {[%clk 0:00:01.7]} 67. Kg3
{[%clk 0:00:05.4]} 1-0

[Event "Late-Titled-Tuesday-Blitz-October-24-2023"]
[Site "Chess.com"]
[Date "2023.10.24"]
[Round "10"]
[White "jk13"]
[Black "jaskol95"]
[Result "1/2-1/2"]
[WhiteElo "2670"]
[BlackElo "2559"]
[TimeControl "180+1"]
[EndTime "15:57:28 PDT"]
[Termination "Game drawn by repetition"]

1. e4 {[%clk 0:03:00.9]} 1... d5 {[%clk 0:02:58.8]} 2. exd5 {[%clk 0:03:01]}
2... Nf6 {[%clk 0:02:59.1]} 3. d4 {[%clk 0:03:00.7]} 3... Bg4 {[%clk 0:02:59.6]}
4. f3 {[%clk 0:02:59.7]} 4... Bf5 {[%clk 0:03:00.1]} 5. c4 {[%clk 0:02:59.4]}
5... e6 {[%clk 0:02:59.1]} 6. dxe6 {[%clk 0:02:57.2]} 6... Nc6 {[%clk 0:02:57]}
7. Be3 {[%clk 0:02:45.5]} 7... Bb4+ {[%clk 0:02:41.8]} 8. Nc3 {[%clk 0:02:44]}
8... O-O {[%clk 0:02:36.5]} 9. Ne2 {[%clk 0:02:21.9]} 9... fxe6 {[%clk
0:02:34.9]} 10. Ng3 {[%clk 0:02:15.9]} 10... Bg6 {[%clk 0:02:27.2]} 11. Be2
{[%clk 0:02:16.2]} 11... e5 {[%clk 0:02:19.6]} 12. d5 {[%clk 0:02:14.9]} 12...
Nd4 {[%clk 0:02:17]} 13. Rc1 {[%clk 0:02:09.2]} 13... c6 {[%clk 0:02:04.6]} 14.
O-O {[%clk 0:01:57.1]} 14... Bxc3 {[%clk 0:01:49.2]} 15. Rxc3 {[%clk 0:01:45.8]}
15... cxd5 {[%clk 0:01:46.9]} 16. Bxd4 {[%clk 0:01:43.9]} 16... exd4 {[%clk
0:01:46.7]} 17. Qxd4 {[%clk 0:01:44.2]} 17... dxc4 {[%clk 0:01:44.4]} 18. Bxc4+
{[%clk 0:01:42]} 18... Kh8 {[%clk 0:01:43.3]} 19. Qxd8 {[%clk 0:01:34.5]} 19...
Raxd8 {[%clk 0:01:43.2]} 20. Bb3 {[%clk 0:01:31.6]} 20... Rd2 {[%clk 0:01:38.4]}
21. Rf2 {[%clk 0:01:31.7]} 21... Rd4 {[%clk 0:01:23.8]} 22. Ne2 {[%clk
0:01:20.5]} 22... Rd2 {[%clk 0:01:09.1]} 23. Ng3 {[%clk 0:00:49.6]} 23... Rd4
{[%clk 0:01:09.3]} 24. Re2 {[%clk 0:00:45.7]} 24... h5 {[%clk 0:01:07.8]} 25.
Nf1 {[%clk 0:00:42.5]} 25... Rfd8 {[%clk 0:00:59.3]} 26. Kf2 {[%clk 0:00:40.6]}
26... R8d7 {[%clk 0:00:52.3]} 27. g3 {[%clk 0:00:37.5]} 27... Kh7 {[%clk
0:00:50.4]} 28. h4 {[%clk 0:00:37]} 28... Nd5 {[%clk 0:00:48.7]} 29. Bxd5 {[%clk
0:00:29.2]} 29... R4xd5 {[%clk 0:00:49.3]} 30. Ne3 {[%clk 0:00:28.6]} 30... Rd2
{[%clk 0:00:47.6]} 31. b3 {[%clk 0:00:24.8]} 31... R2d6 {[%clk 0:00:37.7]} 32.
Nc4 {[%clk 0:00:24.7]} 32... Rd1 {[%clk 0:00:32.1]} 33. Ne5 {[%clk 0:00:23.7]}
33... R7d2 {[%clk 0:00:32.4]} 34. Nxg6 {[%clk 0:00:22.3]} 34... Kxg6 {[%clk
0:00:31.8]} 35. Rc5 {[%clk 0:00:20]} 35... Rd6 {[%clk 0:00:22.5]} 36. Rc7 {[%clk
0:00:18.6]} 36... Rd7 {[%clk 0:00:17.7]} 37. Rc5 {[%clk 0:00:13.4]} 37... R1d5
{[%clk 0:00:16.6]} 38. Rxd5 {[%clk 0:00:12.6]} 38... Rxd5 {[%clk 0:00:17.5]} 39.
a4 {[%clk 0:00:09.9]} 39... a6 {[%clk 0:00:16.6]} 40. Re4 {[%clk 0:00:08.7]}
40... b5 {[%clk 0:00:16.7]} 41. axb5 {[%clk 0:00:07.4]} 41... Rxb5 {[%clk
0:00:16.6]} 42. Re3 {[%clk 0:00:06.7]} 42... Kf5 {[%clk 0:00:16.6]} 43. Ke2
{[%clk 0:00:06.7]} 43... g5 {[%clk 0:00:16.4]} 44. hxg5 {[%clk 0:00:06]} 44...
Kxg5 {[%clk 0:00:17.3]} 45. Kd2 {[%clk 0:00:05.2]} 45... h4 {[%clk 0:00:16.3]}
46. gxh4+ {[%clk 0:00:05.2]} 46... Kxh4 {[%clk 0:00:16.8]} 47. Kc3 {[%clk
0:00:05.2]} 47... Kg3 {[%clk 0:00:16.7]} 48. Re6 {[%clk 0:00:03.7]} 48... a5
{[%clk 0:00:14.3]} 49. Rf6 {[%clk 0:00:03.9]} 49... Rd5 {[%clk 0:00:12.7]} 50.
Rf8 {[%clk 0:00:03]} 50... Kf2 {[%clk 0:00:12.2]} 51. f4 {[%clk 0:00:03.2]}
51... Ke3 {[%clk 0:00:12.7]} 52. f5 {[%clk 0:00:03.2]} 52... Rc5+ {[%clk
0:00:13.1]} 53. Kb2 {[%clk 0:00:03.7]} 53... Kf4 {[%clk 0:00:12.9]} 54. f6
{[%clk 0:00:04.3]} 54... Kf5 {[%clk 0:00:13.3]} 55. f7 {[%clk 0:00:04.5]} 55...
Kf6 {[%clk 0:00:12.8]} 56. Ka3 {[%clk 0:00:04.6]} 56... Ke7 {[%clk 0:00:06.8]}
57. Ra8 {[%clk 0:00:03.9]} 57... Kxf7 {[%clk 0:00:07.2]} 58. Ka4 {[%clk
0:00:04.5]} 58... Ke6 {[%clk 0:00:06.6]} 59. Rxa5 {[%clk 0:00:05.1]} 59... Rc1
{[%clk 0:00:06.8]} 60. Rb5 {[%clk 0:00:04.2]} 60... Kd7 {[%clk 0:00:07]} 61. Kb4
{[%clk 0:00:03.6]} 61... Kc6 {[%clk 0:00:06.8]} 62. Rh5 {[%clk 0:00:03.7]} 62...
Kb7 {[%clk 0:00:06.1]} 63. Rh6 {[%clk 0:00:04.1]} 63... Rc7 {[%clk 0:00:05.4]}
64. Kb5 {[%clk 0:00:04.4]} 64... Rg7 {[%clk 0:00:05.8]} 65. Rh5 {[%clk
0:00:04.1]} 65... Rf7 {[%clk 0:00:05.6]} 66. b4 {[%clk 0:00:04.8]} 66... Rg7
{[%clk 0:00:06]} 67. Rc5 {[%clk 0:00:05.5]} 67... Rf7 {[%clk 0:00:06.1]} 68. Rd5
{[%clk 0:00:06.2]} 68... Rg7 {[%clk 0:00:06.2]} 69. Kc5 {[%clk 0:00:07.1]} 69...
Rc7+ {[%clk 0:00:06.2]} 70. Kd4 {[%clk 0:00:07.2]} 70... Rg7 {[%clk 0:00:06.3]}
71. Kc4 {[%clk 0:00:07.3]} 71... Rf7 {[%clk 0:00:05.9]} 72. Kb3 {[%clk
0:00:07.8]} 72... Kc6 {[%clk 0:00:05.3]} 73. Ra5 {[%clk 0:00:07.2]} 73... Kb6
{[%clk 0:00:05.6]} 74. Ka4 {[%clk 0:00:07.5]} 74... Rf1 {[%clk 0:00:05.6]} 75.
Rb5+ {[%clk 0:00:08.4]} 75... Ka6 {[%clk 0:00:05.6]} 76. Rh5 {[%clk 0:00:08.8]}
76... Ra1+ {[%clk 0:00:05.5]} 77. Kb3 {[%clk 0:00:09.5]} 77... Rb1+ {[%clk
0:00:06.2]} 78. Kc3 {[%clk 0:00:10.2]} 78... Rc1+ {[%clk 0:00:06.6]} 79. Kb2
{[%clk 0:00:10.7]} 79... Rg1 {[%clk 0:00:06.7]} 80. Kb3 {[%clk 0:00:11.1]} 80...
Rb1+ {[%clk 0:00:06.7]} 81. Ka3 {[%clk 0:00:11.3]} 81... Ra1+ {[%clk 0:00:07.1]}
82. Kb3 {[%clk 0:00:11.8]} 82... Rb1+ {[%clk 0:00:07.5]} 1/2-1/2

[Event "Late-Titled-Tuesday-Blitz-October-24-2023"]
[Site "Chess.com"]
[Date "2023.10.24"]
[Round "10"]
[White "Nick12772"]
[Black "R2D2PTY"]
[Result "1-0"]
[WhiteElo "2379"]
[BlackElo "2289"]
[TimeControl "180+1"]
[EndTime "15:57:46 PDT"]
[Termination "Nick12772 won by resignation"]

1. Nf3 {[%clk 0:03:00.9]} 1... Nf6 {[%clk 0:02:59.2]} 2. g3 {[%clk 0:03:00.8]}
2... b5 {[%clk 0:02:56.7]} 3. Bg2 {[%clk 0:03:01.2]} 3... Bb7 {[%clk 0:02:57.2]}
4. O-O {[%clk 0:03:01.9]} 4... e6 {[%clk 0:02:56.8]} 5. d4 {[%clk 0:02:51.6]}
5... c5 {[%clk 0:02:55]} 6. Nc3 {[%clk 0:02:45.7]} 6... b4 {[%clk 0:02:33.2]} 7.
Nb1 {[%clk 0:02:35.2]} 7... cxd4 {[%clk 0:02:26.4]} 8. Nxd4 {[%clk 0:02:35.4]}
8... Bxg2 {[%clk 0:02:21]} 9. Kxg2 {[%clk 0:02:36.3]} 9... Be7 {[%clk
0:02:13.7]} 10. a3 {[%clk 0:02:36.4]} 10... Na6 {[%clk 0:01:55.7]} 11. axb4
{[%clk 0:02:32.8]} 11... Nxb4 {[%clk 0:01:56.6]} 12. c3 {[%clk 0:02:32.4]} 12...
Nbd5 {[%clk 0:01:52.6]} 13. c4 {[%clk 0:02:25.4]} 13... Nb6 {[%clk 0:01:47.5]}
14. b3 {[%clk 0:02:16.1]} 14... O-O {[%clk 0:01:47.2]} 15. Ba3 {[%clk
0:02:10.3]} 15... Bxa3 {[%clk 0:01:45.4]} 16. Nxa3 {[%clk 0:02:11.2]} 16... Qc7
{[%clk 0:01:39.6]} 17. Nab5 {[%clk 0:02:08.4]} 17... Qb7+ {[%clk 0:01:38.9]} 18.
Kg1 {[%clk 0:02:08.6]} 18... Ne4 {[%clk 0:01:38.6]} 19. Nf3 {[%clk 0:01:59.6]}
19... a6 {[%clk 0:01:33.5]} 20. Nd6 {[%clk 0:01:56.1]} 20... Nxd6 {[%clk
0:01:33.3]} 21. Qxd6 {[%clk 0:01:57]} 21... Nc8 {[%clk 0:01:29.9]} 22. Qd3
{[%clk 0:01:53.2]} 22... Ne7 {[%clk 0:01:28]} 23. Qd6 {[%clk 0:01:49.1]} 23...
Nf5 {[%clk 0:01:20.9]} 24. Qd3 {[%clk 0:01:47.8]} 24... Rfb8 {[%clk 0:01:20.8]}
25. Rfb1 {[%clk 0:01:36.4]} 25... a5 {[%clk 0:01:17.7]} 26. Nd4 {[%clk 0:01:32]}
26... Nxd4 {[%clk 0:01:11.9]} 27. Qxd4 {[%clk 0:01:32.9]} 27... h6 {[%clk
0:00:58.3]} 28. Qd3 {[%clk 0:01:25.5]} 28... Ra6 {[%clk 0:00:50.3]} 29. Ra3
{[%clk 0:01:18.7]} 29... Rb6 {[%clk 0:00:36.6]} 30. Rxa5 {[%clk 0:01:16.1]}
30... Rxb3 {[%clk 0:00:36.4]} 31. Rxb3 {[%clk 0:01:15.1]} 31... Qxb3 {[%clk
0:00:37.3]} 32. Qxb3 {[%clk 0:01:09.5]} 32... Rxb3 {[%clk 0:00:38.2]} 33. Ra8+
{[%clk 0:01:06.8]} 33... Kh7 {[%clk 0:00:36.9]} 34. Ra7 {[%clk 0:01:06.3]} 34...
Rc3 {[%clk 0:00:16.6]} 35. Rxd7 {[%clk 0:01:05.7]} 35... Kg6 {[%clk 0:00:17.3]}
36. Rc7 {[%clk 0:01:05.3]} 36... Kf6 {[%clk 0:00:17.2]} 37. Kg2 {[%clk
0:00:59.7]} 37... g5 {[%clk 0:00:17.5]} 38. h3 {[%clk 0:00:58.7]} 38... Rc2
{[%clk 0:00:17.8]} 39. e3 {[%clk 0:00:58.6]} 39... Kg6 {[%clk 0:00:15.6]} 40. c5
{[%clk 0:00:58.4]} 40... f5 {[%clk 0:00:15.2]} 41. c6 {[%clk 0:00:58]} 41... h5
{[%clk 0:00:13.3]} 42. Rc8 {[%clk 0:00:57.9]} 42... Kf6 {[%clk 0:00:12.6]} 43.
c7 {[%clk 0:00:57.8]} 43... Ke5 {[%clk 0:00:12.1]} 44. Kf3 {[%clk 0:00:39.5]}
44... g4+ {[%clk 0:00:11.5]} 45. hxg4 {[%clk 0:00:39.5]} 45... hxg4+ {[%clk
0:00:12.4]} 46. Kg2 {[%clk 0:00:40]} 46... Ke4 {[%clk 0:00:11.3]} 47. Re8 {[%clk
0:00:29.2]} 47... Rxc7 {[%clk 0:00:09]} 48. Rxe6+ {[%clk 0:00:29.7]} 48... Kd5
{[%clk 0:00:08.8]} 49. Re8 {[%clk 0:00:29.1]} 49... Rf7 {[%clk 0:00:07]} 50. Kf1
{[%clk 0:00:28.4]} 50... Ra7 {[%clk 0:00:04.8]} 51. Kg2 {[%clk 0:00:24.3]} 51...
Ra5 {[%clk 0:00:03.1]} 52. Rc8 {[%clk 0:00:19.6]} 52... Ke6 {[%clk 0:00:02.2]}
53. Rc1 {[%clk 0:00:20]} 53... Ra2 {[%clk 0:00:02.4]} 54. Re1 {[%clk 0:00:20.3]}
54... Rb2 {[%clk 0:00:02.6]} 55. e4 {[%clk 0:00:20.5]} 55... fxe4 {[%clk
0:00:02.7]} 56. Rxe4+ {[%clk 0:00:21.4]} 56... Kf5 {[%clk 0:00:03.4]} 57. Rf4+
{[%clk 0:00:21.9]} 57... Kg5 {[%clk 0:00:04]} 58. Kf1 {[%clk 0:00:22.2]} 58...
Rb1+ {[%clk 0:00:02.9]} 59. Ke2 {[%clk 0:00:22.8]} 59... Rb2+ {[%clk 0:00:03.6]}
60. Kd3 {[%clk 0:00:23.4]} 60... Rb3+ {[%clk 0:00:02.3]} 61. Kc2 {[%clk
0:00:23.7]} 61... Ra3 {[%clk 0:00:02.5]} 62. Rf8 {[%clk 0:00:23.5]} 62... Ra2+
{[%clk 0:00:02.4]} 63. Kd3 {[%clk 0:00:22.8]} 63... Ra3+ {[%clk 0:00:02.5]} 64.
Ke2 {[%clk 0:00:23.4]} 64... Ra2+ {[%clk 0:00:02.8]} 65. Kf1 {[%clk 0:00:24.1]}
65... Ra1+ {[%clk 0:00:03.1]} 66. Kg2 {[%clk 0:00:24.6]} 66... Ra2 {[%clk
0:00:03.6]} 67. Rg8+ {[%clk 0:00:24.9]} 67... Kf5 {[%clk 0:00:03.7]} 68. Rb8
{[%clk 0:00:25.6]} 68... Kg5 {[%clk 0:00:03.6]} 69. Rb5+ {[%clk 0:00:26.2]}
69... Kg6 {[%clk 0:00:03.5]} 70. Rc5 {[%clk 0:00:24.7]} 70... Rb2 {[%clk
0:00:03]} 71. Kf1 {[%clk 0:00:24.2]} 71... Ra2 {[%clk 0:00:03.1]} 72. Ke1 {[%clk
0:00:22.4]} 72... Rb2 {[%clk 0:00:02.8]} 73. Rd5 {[%clk 0:00:22.3]} 73... Ra2
{[%clk 0:00:02.8]} 74. Rd2 {[%clk 0:00:22.9]} 74... Ra1+ {[%clk 0:00:01.9]} 75.
Ke2 {[%clk 0:00:23.5]} 75... Ra3 {[%clk 0:00:02.6]} 76. Rd3 {[%clk 0:00:23.9]}
76... Ra2+ {[%clk 0:00:02.9]} 77. Ke3 {[%clk 0:00:24.4]} 77... Kg5 {[%clk
0:00:02.9]} 78. Rd5+ {[%clk 0:00:24.4]} 78... Kg6 {[%clk 0:00:02.9]} 79. Kf4
{[%clk 0:00:23.5]} 79... Ra4+ {[%clk 0:00:03.5]} 80. Ke3 {[%clk 0:00:23]} 80...
Ra3+ {[%clk 0:00:03.9]} 81. Rd3 {[%clk 0:00:22.2]} 81... Ra4 {[%clk 0:00:03.8]}
82. Rd4 {[%clk 0:00:22.2]} 82... Ra3+ {[%clk 0:00:03.9]} 83. Kf4 {[%clk
0:00:21.7]} 83... Rf3+ {[%clk 0:00:04]} 84. Kxg4 {[%clk 0:00:21.9]} 84... Rxf2
{[%clk 0:00:04.9]} 85. Rd6+ {[%clk 0:00:22.1]} 85... Kg7 {[%clk 0:00:05.1]} 86.
Kg5 {[%clk 0:00:22.5]} 86... Ra2 {[%clk 0:00:05.1]} 87. Rd7+ {[%clk 0:00:22.8]}
87... Kg8 {[%clk 0:00:04.4]} 88. g4 {[%clk 0:00:21.3]} 88... Ra5+ {[%clk
0:00:04.5]} 89. Kh6 {[%clk 0:00:21.3]} 89... Ra6+ {[%clk 0:00:04.5]} 90. Kh5
{[%clk 0:00:21.4]} 90... Ra1 {[%clk 0:00:04.2]} 91. g5 {[%clk 0:00:21.6]} 91...
Rh1+ {[%clk 0:00:04.5]} 92. Kg6 {[%clk 0:00:22.3]} 92... Rf1 {[%clk 0:00:03.9]}
93. Rd8+ {[%clk 0:00:22.1]} 93... Rf8 {[%clk 0:00:04.5]} 94. Rxf8+ {[%clk
0:00:22.6]} 94... Kxf8 {[%clk 0:00:05.4]} 95. Kh7 {[%clk 0:00:23.2]} 1-0

[Event "Late-Titled-Tuesday-Blitz-October-24-2023"]
[Site "Chess.com"]
[Date "2023.10.24"]
[Round "10"]
[White "alexrustemov"]
[Black "GoltsevDmitry2000"]
[Result "1-0"]
[WhiteElo "2796"]
[BlackElo "2645"]
[TimeControl "180+1"]
[EndTime "15:57:58 PDT"]
[Termination "alexrustemov won on time"]

1. d4 {[%clk 0:02:56.9]} 1... Nf6 {[%clk 0:02:59.1]} 2. c4 {[%clk 0:02:55.2]}
2... e6 {[%clk 0:02:58.7]} 3. Nf3 {[%clk 0:02:55.7]} 3... Bb4+ {[%clk 0:02:58]}
4. Bd2 {[%clk 0:02:55.9]} 4... Qe7 {[%clk 0:02:58.3]} 5. g3 {[%clk 0:02:56.1]}
5... b6 {[%clk 0:02:57]} 6. Bg2 {[%clk 0:02:56]} 6... Bb7 {[%clk 0:02:57.3]} 7.
O-O {[%clk 0:02:56.3]} 7... Bxd2 {[%clk 0:02:55.6]} 8. Qxd2 {[%clk 0:02:56.1]}
8... O-O {[%clk 0:02:55.6]} 9. Nc3 {[%clk 0:02:54.9]} 9... d6 {[%clk 0:02:55.1]}
10. d5 {[%clk 0:02:48.3]} 10... Nbd7 {[%clk 0:02:52.9]} 11. e4 {[%clk
0:02:46.2]} 11... exd5 {[%clk 0:02:49.8]} 12. cxd5 {[%clk 0:02:38.7]} 12... Nxe4
{[%clk 0:02:16.9]} 13. Nxe4 {[%clk 0:02:32.9]} 13... Qxe4 {[%clk 0:02:15.7]} 14.
Nd4 {[%clk 0:02:32.9]} 14... Qg6 {[%clk 0:02:10.2]} 15. Nb5 {[%clk 0:02:30.2]}
15... a6 {[%clk 0:02:06.3]} 16. Nc3 {[%clk 0:02:13.8]} 16... Ne5 {[%clk
0:02:01.6]} 17. Rfe1 {[%clk 0:02:11.4]} 17... Rfe8 {[%clk 0:01:56.2]} 18. h3
{[%clk 0:02:09]} 18... Qd3 {[%clk 0:01:54.6]} 19. Red1 {[%clk 0:01:54.8]} 19...
Qxd2 {[%clk 0:01:54.6]} 20. Rxd2 {[%clk 0:01:55.4]} 20... Re7 {[%clk 0:01:53.8]}
21. b3 {[%clk 0:01:55]} 21... Rae8 {[%clk 0:01:45.7]} 22. Rc1 {[%clk 0:01:54.3]}
22... f5 {[%clk 0:01:39.5]} 23. Ne2 {[%clk 0:01:45.6]} 23... g6 {[%clk
0:01:16.9]} 24. Nd4 {[%clk 0:01:41.4]} 24... Kf7 {[%clk 0:01:02.1]} 25. Ne6
{[%clk 0:01:26.6]} 25... Rc8 {[%clk 0:00:59.7]} 26. b4 {[%clk 0:00:59.7]} 26...
b5 {[%clk 0:00:54.3]} 27. Rdc2 {[%clk 0:00:53.4]} 27... Nc4 {[%clk 0:00:52.8]}
28. a4 {[%clk 0:00:47.7]} 28... Kf6 {[%clk 0:00:49.4]} 29. axb5 {[%clk
0:00:46.4]} 29... axb5 {[%clk 0:00:50.3]} 30. Nd4 {[%clk 0:00:46.6]} 30... Nb6
{[%clk 0:00:47.4]} 31. Nxb5 {[%clk 0:00:45.7]} 31... Bxd5 {[%clk 0:00:39.8]} 32.
Nxc7 {[%clk 0:00:42.7]} 32... Bxg2 {[%clk 0:00:35.6]} 33. Kxg2 {[%clk
0:00:43.2]} 33... Kf7 {[%clk 0:00:14.3]} 34. Nb5 {[%clk 0:00:42.7]} 34... Rxc2
{[%clk 0:00:13]} 35. Rxc2 {[%clk 0:00:43.6]} 35... d5 {[%clk 0:00:11.8]} 36. Rc6
{[%clk 0:00:39]} 36... Re6 {[%clk 0:00:08]} 37. Rc7+ {[%clk 0:00:31.9]} 37...
Re7 {[%clk 0:00:07.8]} 38. Kf3 {[%clk 0:00:26]} 38... Rxc7 {[%clk 0:00:07.5]}
39. Nxc7 {[%clk 0:00:26.6]} 39... Ke7 {[%clk 0:00:07.8]} 40. Kf4 {[%clk
0:00:26]} 40... Kd6 {[%clk 0:00:07.9]} 41. Ne8+ {[%clk 0:00:23.5]} 41... Kc6
{[%clk 0:00:07.5]} 42. Nf6 {[%clk 0:00:20]} 42... d4 {[%clk 0:00:06.3]} 43. Nxh7
{[%clk 0:00:19.4]} 43... Nd5+ {[%clk 0:00:06.6]} 44. Kf3 {[%clk 0:00:19.8]}
44... Kb5 {[%clk 0:00:05.5]} 45. Nf8 {[%clk 0:00:16.7]} 45... Ne7 {[%clk
0:00:05.9]} 46. Ke2 {[%clk 0:00:11.8]} 46... Kxb4 {[%clk 0:00:05.9]} 47. Kd3
{[%clk 0:00:12.3]} 47... Kc5 {[%clk 0:00:03.8]} 48. Ne6+ {[%clk 0:00:10.1]}
48... Kd5 {[%clk 0:00:04.4]} 49. Nf4+ {[%clk 0:00:10.3]} 49... Ke5 {[%clk
0:00:04]} 50. h4 {[%clk 0:00:10.8]} 50... Kf6 {[%clk 0:00:01.6]} 51. Kxd4 {[%clk
0:00:11.1]} 51... Nc6+ {[%clk 0:00:02.5]} 52. Ke3 {[%clk 0:00:11.5]} 52... Ne5
{[%clk 0:00:02.7]} 53. Nd5+ {[%clk 0:00:11.4]} 53... Ke6 {[%clk 0:00:02.9]} 54.
Nf4+ {[%clk 0:00:11.7]} 54... Kf6 {[%clk 0:00:03.5]} 55. f3 {[%clk 0:00:12.5]}
55... Nc4+ {[%clk 0:00:03.7]} 56. Kd4 {[%clk 0:00:12.9]} 56... Ne5 {[%clk
0:00:04.6]} 57. Nd5+ {[%clk 0:00:13.2]} 57... Ke6 {[%clk 0:00:05.3]} 58. Nf4+
{[%clk 0:00:13.1]} 58... Kf6 {[%clk 0:00:05.7]} 59. Ke3 {[%clk 0:00:13.5]} 59...
Nc4+ {[%clk 0:00:06]} 60. Ke2 {[%clk 0:00:14.2]} 60... Ne5 {[%clk 0:00:06.2]}
61. Nd3 {[%clk 0:00:15]} 61... Nc6 {[%clk 0:00:05.7]} 62. Ke3 {[%clk 0:00:15.4]}
62... Ne7 {[%clk 0:00:05.4]} 63. Nf4 {[%clk 0:00:15.2]} 63... Nc6 {[%clk
0:00:05.9]} 64. Ne2 {[%clk 0:00:12.1]} 64... Ne5 {[%clk 0:00:06.2]} 65. Nc3
{[%clk 0:00:12.1]} 65... Nc4+ {[%clk 0:00:06.2]} 66. Kd4 {[%clk 0:00:12.3]}
66... Nd2 {[%clk 0:00:06.7]} 67. Nd5+ {[%clk 0:00:12]} 67... Kg7 {[%clk
0:00:05.6]} 68. Ke3 {[%clk 0:00:11.6]} 68... Nc4+ {[%clk 0:00:05.9]} 69. Kf4
{[%clk 0:00:12]} 69... Kh6 {[%clk 0:00:04.5]} 70. Ne7 {[%clk 0:00:11.1]} 70...
Nb2 {[%clk 0:00:04.4]} 71. Nxf5+ {[%clk 0:00:11.2]} 71... gxf5 {[%clk
0:00:04.4]} 72. Kxf5 {[%clk 0:00:12.1]} 72... Nd3 {[%clk 0:00:03.8]} 73. Ke4
{[%clk 0:00:12.4]} 73... Nc5+ {[%clk 0:00:03.7]} 74. Kf4 {[%clk 0:00:12.1]}
74... Nd3+ {[%clk 0:00:04.2]} 75. Ke3 {[%clk 0:00:12.3]} 75... Ne5 {[%clk
0:00:04.2]} 76. g4 {[%clk 0:00:12.5]} 76... Ng6 {[%clk 0:00:04.1]} 77. h5 {[%clk
0:00:12.1]} 77... Ne5 {[%clk 0:00:04.5]} 78. Ke4 {[%clk 0:00:12.5]} 78... Nc4
{[%clk 0:00:03.8]} 79. f4 {[%clk 0:00:12.7]} 79... Nd6+ {[%clk 0:00:04.3]} 80.
Ke5 {[%clk 0:00:12.9]} 80... Nc4+ {[%clk 0:00:04.6]} 81. Kf6 {[%clk 0:00:12.9]}
81... Ne3 {[%clk 0:00:04.6]} 82. g5+ {[%clk 0:00:11]} 82... Kxh5 {[%clk
0:00:05.3]} 83. g6 {[%clk 0:00:11.6]} 83... Nd5+ {[%clk 0:00:04.3]} 84. Kf7
{[%clk 0:00:09.7]} 84... Kh6 {[%clk 0:00:01.8]} 85. g7 {[%clk 0:00:09.6]} 85...
Ne7 {[%clk 0:00:01.2]} 86. Kxe7 {[%clk 0:00:09.5]} 1-0